fUSD/lending_fUSD_20250811
["ID","MTS","AMOUNT","RATE_DAILY","PERIOD"]
[378473819,1754879435884,-1565.88,0.00018856,2]
[378473820,1754879435894,-1837.6,0.00018856,2]
[378473821,1754879435904,-2052.71,0.00018856,2]
[378473822,1754879435913,-473.15708833,0.00018856,2]
[378473823,1754879435922,-400.0,0.00018856,2]
[378473824,1754879435932,-506.61,0.00018856,2]
[378473825,1754879435941,-1941.23,0.00018856,2]
[378473826,1754879435950,-763.34,0.00018856,2]
[378473827,1754879435960,-2301.94,0.00018856,2]
[378473828,1754879435970,-753.7,0.00018856,2]
[378473829,1754879435979,-585.92,0.00018856,2]
[378473830,1754879435988,-554.78,0.00018856,2]
[378473831,1754879435998,-680.41,0.00018856,2]
[378473832,1754879436008,-1502.26,0.00018856,2]
[378473833,1754879436017,-400.0,0.00018856,2]
[378473834,1754879436027,-400.0,0.00018856,2]
[378473835,1754879436039,-644.06,0.00018856,2]
[378473836,1754879436049,-1450.06,0.00018856,2]
[378473837,1754879436059,-1304.47,0.00018856,2]
[378473838,1754879436068,-941.35,0.00018856,2]
[378473839,1754879436077,-1942.16,0.00018856,2]
[378473840,1754879436087,-697.5,0.00018856,2]
[378473841,1754879436096,-400.0,0.00018856,2]
[378473842,1754879436105,-663.04,0.00018856,2]
[378473843,1754879436114,-5056.26,0.00018856,2]
[378473844,1754879436124,-978.13,0.00018856,2]
[378473845,1754879436136,-2463.74,0.00018856,2]
[378473846,1754879436145,-845.03,0.00018856,2]
[378473847,1754879436155,-1430.74,0.00018856,2]
[378473848,1754879436164,-1099.25,0.00018856,2]
[378473849,1754879436173,-410.68,0.00018856,2]
[378473850,1754879436183,-400.0,0.00018856,2]
[378473851,1754879436192,-946.09,0.00018856,2]
[378473852,1754879436201,-459.32,0.00018856,2]
[378473853,1754879436210,-400.0,0.00018856,2]
[378473854,1754879436220,-1102.85,0.00018856,2]
[378473855,1754879436229,-1725.6,0.00018856,2]
[378473856,1754879436239,-809.22,0.00018856,2]
[378473857,1754879436248,-1608.2,0.00018856,2]
[378473858,1754879436258,-454.75,0.00018856,2]
[378473859,1754879436267,-994.59,0.00018856,2]
[378473860,1754879436277,-838.29,0.00018856,2]
[378473861,1754879436286,-401.53427846,0.00018856,2]
[378473862,1754879436296,-400.0,0.00018856,2]
[378473863,1754879436306,-788.84,0.00018856,2]
[378473864,1754879436316,-400.0,0.00018856,2]
[378473865,1754879436325,-400.0,0.00018856,2]
[378473866,1754879436335,-400.0,0.00018856,2]
[378473867,1754879436344,-400.0,0.00018856,2]
[378473868,1754879436354,-1445.65,0.00018856,2]
[378473869,1754879436364,-486.72,0.00018856,2]
[378473870,1754879436373,-474.77,0.00018856,2]
[378473871,1754879436385,-400.0,0.00018856,2]
[378473872,1754879436395,-1846.75,0.00018856,2]
[378473873,1754879436405,-1434.31,0.00018856,2]
[378473874,1754879436415,-722.25,0.00018856,2]
[378473875,1754879436425,-402.12992213,0.00018856,2]
[378473876,1754879436434,-211.73953792,0.00018872,2]
[378473877,1754879436444,-457.87080987,0.00018872,2]
[378473878,1754879436453,-842.86497659,0.00018872,2]
[378473879,1754879436463,-391.45237852,0.00018898,2]
[378473880,1754879436473,-1895.9722,0.00018898,2]
[378473881,1754879436483,-391.45237847,0.00018898,2]
[378473882,1754879436492,-391.45237847,0.00018898,2]
[378473883,1754879436502,-391.45237847,0.00018899,2]
[378473884,1754879436511,-391.45237847,0.00018899,2]
[378473885,1754879436522,-391.45237847,0.00018899,2]
[378473886,1754879436532,-391.45237847,0.00018899,2]
[378473887,1754879436542,-391.45237847,0.000189,2]
[378473888,1754879436552,-2277.90048612,0.000189,2]
[378473889,1754879436562,-391.45237847,0.000189,2]
[378473890,1754879436572,-331.18,0.000189,2]
[378473891,1754879436582,-481.39,0.000189,2]
[378473892,1754879436591,-391.45237847,0.000189,2]
[378473893,1754879436603,-180.46,0.0001894,2]
[378473894,1754879436614,-146686.02831321,0.0001895,2]
[378473895,1754879436624,-17459.95658469,0.00018952,2]
[378473896,1754879436904,-278357.19041258,0.00018952,2]
[378473897,1754879436914,-34161.67234976,0.00018962,2]
[378473898,1754879436934,-4848.0,0.00018962,2]
[378473899,1754879436945,-1909.7284332,0.00018962,2]
[378473900,1754879437030,-900.0,0.00018962,2]
[378473901,1754879437068,-25937.65818497,0.00018962,2]
[378473917,1754879438049,-513.55597536,0.00018855,2]
[378473990,1754879438746,-310.82028421,0.00018854,2]
[378473993,1754879438758,-81.84447367,0.00018854,2]
[378473995,1754879438768,-350.72402464,0.00018855,2]
[378473997,1754879438778,-77.43262795,0.00018962,2]
[378474000,1754879438795,-18187.5,0.00018962,2]
[378474003,1754879438820,-2763.03721614,0.00018962,2]
[378474005,1754879438834,-517.884,0.00018962,2]
[378474028,1754879439051,-4028.66108447,0.00018962,2]
[378474098,1754879439625,-2041.0125742,0.00018962,2]
[378474128,1754879439924,-402.2882913,0.00018856,2]
[378474130,1754879439933,-302.61343602,0.00018962,2]
[378474132,1754879439945,-1726.00720309,0.00018962,2]
[378474135,1754879439956,-4119.45280101,0.00018962,2]
[378474137,1754879439972,-56298.83407638,0.00018962,2]
[378474139,1754879439983,-1973.6096278,0.00018962,2]
[378474142,1754879439995,-2238.57733134,0.00018962,2]
[378474144,1754879440007,-277.90740012,0.00018962,2]
[378474147,1754879440023,-469.44715732,0.00018962,2]
[378474149,1754879440039,-133038.1114935,0.00018962,2]
[378474151,1754879440049,-2366.028,0.0001897,2]
[378474154,1754879440058,-183.494,0.0001897,2]
[378474156,1754879440068,-5703.84397696,0.00018971,2]
[378474158,1754879440078,-5703.84397696,0.00018971,2]
[378474159,1754879440088,-500.0,0.00018973,2]
[378474161,1754879440097,-500.0,0.00018973,2]
[378474163,1754879440106,-288.2211847,0.00018973,2]
[378474166,1754879440115,-204.09463654,0.00018973,2]
[378474167,1754879440124,-504.48052608,0.00018973,2]
[378474170,1754879440138,-500.0,0.00018973,2]
[378474172,1754879440147,-564.86825239,0.00018973,2]
[378474174,1754879440156,-500.0,0.00018973,2]
[378474176,1754879440166,-500.0,0.00018973,2]
[378474178,1754879440175,-502.628276,0.00018973,2]
[378474180,1754879440184,-500.0,0.00018973,2]
[378474182,1754879440193,-500.0,0.0001898,2]
[378474184,1754879440203,-1629.65,0.0001898,2]
[378474186,1754879440212,-295817.14699727,0.00018982,2]
[378474188,1754879440221,-709.0,0.00018988,2]
[378474190,1754879440231,-500.0,0.00018988,2]
[378474192,1754879440241,-150.0,0.00018988,2]
[378474194,1754879440251,-500.0,0.00018988,2]
[378474196,1754879440264,-150.0,0.00018988,2]
[378474198,1754879440273,-500.0,0.00018988,2]
[378474200,1754879440283,-154.56220658,0.00018988,2]
[378474202,1754879440293,-150.0,0.00018988,2]
[378474204,1754879440303,-150.0,0.00018988,2]
[378474206,1754879440312,-933.0,0.00018988,2]
[378474208,1754879440322,-894.0,0.00018988,2]
[378474210,1754879440332,-573.0,0.00018988,2]
[378474212,1754879440342,-5703.84397696,0.00018988,2]
[378474214,1754879440351,-295817.14699727,0.00018988,2]
[378474216,1754879440360,-5703.84397696,0.00018992,2]
[378474218,1754879440370,-295817.14699727,0.00018993,2]
[378474220,1754879440382,-5703.84397696,0.00018996,2]
[378474223,1754879440392,-400.0,0.00018998,2]
[378474225,1754879440402,-400.0,0.00018998,2]
[378474227,1754879440411,-400.0,0.00018998,2]
[378474229,1754879440420,-406.38784225,0.00018998,2]
[378474230,1754879440429,-515.56,0.00018998,2]
[378474232,1754879440439,-400.0,0.00018998,2]
[378474235,1754879440449,-403.63278534,0.00018998,2]
[378474236,1754879440459,-400.0,0.00018998,2]
[378474238,1754879440469,-400.0,0.00018998,2]
[378474241,1754879440478,-405.67339013,0.00018998,2]
[378474243,1754879440488,-400.0,0.00018998,2]
[378474244,1754879440498,-400.0,0.00018998,2]
[378474246,1754879440508,-400.0,0.00018998,2]
[378474249,1754879440520,-408.07,0.00018998,2]
[378474251,1754879440532,-400.0,0.00018998,2]
[378474253,1754879440542,-488.39070901,0.00018998,2]
[378474255,1754879440554,-404.26399906,0.00018998,2]
[378474257,1754879440564,-400.0,0.00018998,2]
[378474259,1754879440573,-400.0,0.00018998,2]
[378474261,1754879440583,-409.15,0.00018998,2]
[378474263,1754879440592,-801.36,0.00018998,2]
[378474265,1754879440603,-413.17130291,0.00018998,2]
[378474267,1754879440613,-451.9023175,0.00018998,2]
[378474269,1754879440623,-189.06946332,0.00018998,2]
[378474271,1754879440635,-400.0,0.00018998,2]
[378474273,1754879440644,-400.0,0.00018998,2]
[378474275,1754879440654,-400.0,0.00018998,2]
[378474277,1754879440664,-400.0,0.00018998,2]
[378474279,1754879440674,-400.0,0.00018998,2]
[378474280,1754879440683,-400.0,0.00018998,2]
[378474281,1754879440694,-400.0,0.00018998,2]
[378474282,1754879440704,-400.0,0.00018998,2]
[378474283,1754879440714,-400.0,0.00018998,2]
[378474284,1754879440724,-400.0,0.00018998,2]
[378474285,1754879440733,-404.96504553,0.00018998,2]
[378474286,1754879440743,-404.79003473,0.00018998,2]
[378474287,1754879440752,-427.68242627,0.00018998,2]
[378474288,1754879440762,-435.63740966,0.00018998,2]
[378474289,1754879440771,-400.0,0.00018998,2]
[378474290,1754879440780,-531.57,0.00018998,2]
[378474291,1754879440789,-403.20228706,0.00018998,2]
[378474292,1754879440799,-402.61739546,0.00018998,2]
[378474293,1754879440808,-400.0,0.00018998,2]
[378474294,1754879440818,-650.22,0.00018998,2]
[378474296,1754879440830,-421.73195507,0.00018998,2]
[378474297,1754879440839,-400.0,0.00018998,2]
[378474299,1754879440848,-400.0,0.00018998,2]
[378474301,1754879440858,-649.15,0.00018998,2]
[378474303,1754879440867,-400.0,0.00018998,2]
[378474306,1754879440877,-404.39908961,0.00018998,2]
[378474308,1754879440888,-758.24,0.00018998,2]
[378474310,1754879440898,-400.0,0.00018998,2]
[378474312,1754879440907,-398.61487412,0.00018998,2]
[378474314,1754879440917,-400.0,0.00018998,2]
[378474316,1754879440926,-400.0,0.00018998,2]
[378474318,1754879440935,-400.0,0.00018998,2]
[378474320,1754879440944,-400.0,0.00018998,2]
[378474322,1754879440954,-400.0,0.00018998,2]
[378474324,1754879440963,-400.0,0.00018998,2]
[378474326,1754879440972,-400.995659,0.00018998,2]
[378474328,1754879440981,-400.0,0.00018998,2]
[378474330,1754879440990,-464.61,0.00018998,2]
[378474332,1754879440999,-400.0,0.00018998,2]
[378474334,1754879441009,-400.0,0.00018998,2]
[378474336,1754879441018,-400.0,0.00018998,2]
[378474338,1754879441027,-417.88,0.00018998,2]
[378474339,1754879441037,-400.0,0.00018998,2]
[378474341,1754879441046,-402.69,0.00018998,2]
[378474343,1754879441055,-401.08088384,0.00018998,2]
[378474345,1754879441065,-458.65217434,0.00018998,2]
[378474347,1754879441074,-400.0,0.00018998,2]
[378474350,1754879441084,-508.46397747,0.00018998,2]
[378474351,1754879441094,-404.01386636,0.00018998,2]
[378474354,1754879441103,-400.0,0.00018998,2]
[378474356,1754879441112,-403.06273944,0.00018998,2]
[378474358,1754879441122,-400.0,0.00018998,2]
[378474359,1754879441133,-400.0,0.00018998,2]
[378474362,1754879441143,-400.58656732,0.00018998,2]
[378474363,1754879441152,-400.0,0.00018998,2]
[378474366,1754879441163,-400.0,0.00018998,2]
[378474368,1754879441172,-400.0,0.00018998,2]
[378474370,1754879441181,-430.31771866,0.00018998,2]
[378474372,1754879441191,-422.73112819,0.00018998,2]
[378474374,1754879441200,-400.0,0.00018998,2]
[378474376,1754879441209,-400.0,0.00018998,2]
[378474378,1754879441219,-400.0,0.00018998,2]
[378474380,1754879441228,-400.0,0.00018998,2]
[378474382,1754879441237,-405.69081131,0.00018998,2]
[378474384,1754879441246,-400.0,0.00018998,2]
[378474386,1754879441255,-400.0,0.00018998,2]
[378474388,1754879441264,-400.0,0.00018998,2]
[378474390,1754879441273,-418.73754254,0.00018998,2]
[378474392,1754879441282,-400.0,0.00018998,2]
[378474394,1754879441292,-400.0,0.00018998,2]
[378474396,1754879441301,-402.85504396,0.00018998,2]
[378474398,1754879441310,-400.0,0.00018998,2]
[378474400,1754879441319,-402.67618986,0.00018998,2]
[378474402,1754879441328,-400.0,0.00018998,2]
[378474404,1754879441337,-393.5597697,0.00018998,2]
[378474406,1754879441346,-406.50840012,0.00018998,2]
[378474408,1754879441356,-400.0,0.00018998,2]
[378474410,1754879441365,-400.0,0.00018998,2]
[378474412,1754879441374,-400.0,0.00018998,2]
[378474414,1754879441386,-400.0,0.00018998,2]
[378474416,1754879441395,-400.0,0.00018998,2]
[378474418,1754879441404,-400.0,0.00018998,2]
[378474420,1754879441413,-401.32373715,0.00018998,2]
[378474422,1754879441423,-400.0,0.00018998,2]
[378474424,1754879441433,-400.0,0.00018998,2]
[378474426,1754879441443,-400.0,0.00018998,2]
[378474428,1754879441452,-406.26,0.00018998,2]
[378474430,1754879441462,-581.01,0.00018998,2]
[378474432,1754879441472,-400.0,0.00018998,2]
[378474434,1754879441481,-400.0,0.00018998,2]
[378474436,1754879441491,-400.0,0.00018998,2]
[378474438,1754879441501,-400.0,0.00018998,2]
[378474440,1754879441510,-400.0,0.00018998,2]
[378474442,1754879441520,-1055.22,0.00018998,2]
[378474444,1754879441532,-400.0,0.00018998,2]
[378474446,1754879441542,-404.811814,0.00018998,2]
[378474448,1754879441552,-525.53,0.00018998,2]
[378474451,1754879441562,-675.09,0.00018998,2]
[378474453,1754879441572,-400.0,0.00018998,2]
[378474455,1754879441583,-400.0,0.00018998,2]
[378474457,1754879441592,-400.0,0.00018998,2]
[378474459,1754879441604,-400.0,0.00018998,2]
[378474461,1754879441614,-400.0,0.00018998,2]
[378474463,1754879441625,-400.0,0.00018998,2]
[378474465,1754879441638,-400.0,0.00018998,2]
[378474467,1754879441648,-400.0,0.00018998,2]
[378474469,1754879441658,-455.28,0.00018998,2]
[378474471,1754879441667,-400.0,0.00018998,2]
[378474474,1754879441677,-402.1240455,0.00018998,2]
[378474476,1754879441687,-404.32960177,0.00018998,2]
[378474478,1754879441697,-400.0,0.00018998,2]
[378474480,1754879441706,-400.0,0.00018998,2]
[378474482,1754879441716,-425.58,0.00018998,2]
[378474484,1754879441727,-400.0,0.00018998,2]
[378474486,1754879441736,-403.32310398,0.00018998,2]
[378474488,1754879441747,-400.0,0.00018998,2]
[378474490,1754879441757,-400.0,0.00018998,2]
[378474492,1754879441767,-404.43836397,0.00018998,2]
[378474494,1754879441776,-402.33106269,0.00018998,2]
[378474496,1754879441786,-400.0,0.00018998,2]
[378474498,1754879441796,-500.0,0.00018998,2]
[378474500,1754879441806,-868.26,0.00018998,2]
[378474502,1754879441815,-400.0,0.00018998,2]
[378474504,1754879441825,-400.0,0.00018998,2]
[378474507,1754879441835,-572.08,0.00018998,2]
[378474509,1754879441845,-201.73464664,0.00018998,2]
[378474511,1754879441856,-402.85,0.00018998,2]
[378474513,1754879441866,-400.0,0.00018998,2]
[378474515,1754879441875,-400.0,0.00018998,2]
[378474517,1754879441887,-500.0,0.00018998,2]
[378474519,1754879441898,-400.0,0.00018998,2]
[378474521,1754879441908,-400.0,0.00018998,2]
[378474524,1754879441918,-400.0,0.00018998,2]
[378474526,1754879441928,-388.38,0.00018998,2]
[378474528,1754879441938,-400.0,0.00018998,2]
[378474530,1754879441947,-400.0,0.00018998,2]
[378474532,1754879441957,-519.13,0.00018998,2]
[378474534,1754879441967,-400.0,0.00018998,2]
[378474536,1754879441980,-400.0,0.00018998,2]
[378474538,1754879441990,-400.0,0.00018998,2]
[378474540,1754879441999,-400.0,0.00018998,2]
[378474542,1754879442009,-400.0,0.00018998,2]
[378474544,1754879442018,-400.0,0.00018998,2]
[378474546,1754879442029,-654.36,0.00018998,2]
[378474548,1754879442038,-437.5,0.00018998,2]
[378474550,1754879442047,-400.0,0.00018998,2]
[378474552,1754879442057,-400.0,0.00018998,2]
[378474554,1754879442066,-400.0,0.00018998,2]
[378474556,1754879442076,-400.0,0.00018998,2]
[378474558,1754879442086,-515.87334537,0.00018998,2]
[378474560,1754879442096,-400.0,0.00018998,2]
[378474562,1754879442106,-478.03,0.00018998,2]
[378474564,1754879442116,-400.0,0.00018998,2]
[378474566,1754879442126,-601.43,0.00018998,2]
[378474568,1754879442138,-400.0,0.00018998,2]
[378474570,1754879442149,-417.18,0.00018998,2]
[378474572,1754879442160,-544.84,0.00018998,2]
[378474575,1754879442170,-421.19016393,0.00018998,2]
[378474577,1754879442180,-400.0,0.00018998,2]
[378474578,1754879442188,-400.0,0.00018998,2]
[378474581,1754879442199,-400.86127178,0.00018998,2]
[378474584,1754879442209,-500.0,0.00018998,2]
[378474587,1754879442220,-400.0,0.00018998,2]
[378474589,1754879442230,-400.0,0.00018998,2]
[378474592,1754879442240,-400.0,0.00018998,2]
[378474595,1754879442250,-403.56537614,0.00018998,2]
[378474598,1754879442259,-407.61615852,0.00018998,2]
[378474601,1754879442269,-400.0,0.00018998,2]
[378474603,1754879442278,-548.41,0.00018998,2]
[378474605,1754879442287,-400.0,0.00018998,2]
[378474607,1754879442297,-405.08740656,0.00018998,2]
[378474609,1754879442307,-400.0,0.00018998,2]
[378474611,1754879442316,-432.39966931,0.00018998,2]
[378474613,1754879442326,-2703.77,0.00018998,2]
[378474615,1754879442336,-400.0,0.00018998,2]
[378474617,1754879442346,-400.0,0.00018998,2]
[378474619,1754879442356,-400.0,0.00018998,2]
[378474621,1754879442366,-400.0,0.00018998,2]
[378474623,1754879442376,-400.0,0.00018998,2]
[378474625,1754879442387,-400.0,0.00018998,2]
[378474627,1754879442398,-1100.15,0.00018998,2]
[378474629,1754879442408,-233.93418876,0.00018998,2]
[378474632,1754879442418,-402.65261491,0.00018998,2]
[378474634,1754879442429,-899.76,0.00018998,2]
[378474636,1754879442439,-404.08442056,0.00018998,2]
[378474638,1754879442450,-413.99,0.00018998,2]
[378474640,1754879442460,-403.59548231,0.00018998,2]
[378474642,1754879442470,-591.4,0.00018998,2]
[378474644,1754879442481,-400.0,0.00018998,2]
[378474646,1754879442491,-553.2,0.00018998,2]
[378474648,1754879442501,-403.24284011,0.00018998,2]
[378474650,1754879442512,-400.0,0.00018998,2]
[378474652,1754879442533,-400.0,0.00018998,2]
[378474654,1754879442547,-400.0,0.00018998,2]
[378474656,1754879442557,-400.0,0.00018998,2]
[378474659,1754879442569,-400.0,0.00018998,2]
[378474661,1754879442579,-457.86,0.00018998,2]
[378474663,1754879442589,-400.0,0.00018998,2]
[378474665,1754879442599,-403.75887159,0.00018998,2]
[378474667,1754879442610,-400.0,0.00018998,2]
[378474669,1754879442620,-403.73618737,0.00018998,2]
[378474671,1754879442630,-1095.59,0.00018998,2]
[378474673,1754879442643,-401.81064629,0.00018998,2]
[378474675,1754879442653,-404.77187722,0.00018998,2]
[378474677,1754879442662,-401.02107694,0.00018998,2]
[378474679,1754879442672,-402.03582961,0.00018998,2]
[378474681,1754879442682,-400.0,0.00018998,2]
[378474683,1754879442693,-403.57631305,0.00018998,2]
[378474685,1754879442703,-403.16401699,0.00018998,2]
[378474687,1754879442713,-402.7778793,0.00018998,2]
[378474689,1754879442723,-401.81086694,0.00018998,2]
[378474691,1754879442733,-402.54660199,0.00018998,2]
[378474693,1754879442743,-400.0,0.00018998,2]
[378474696,1754879442753,-1219.19,0.00018998,2]
[378474698,1754879442763,-400.0,0.00018998,2]
[378474700,1754879442775,-400.0,0.00018998,2]
[378474702,1754879442784,-400.0,0.00018998,2]
[378474704,1754879442795,-400.0,0.00018998,2]
[378474706,1754879442805,-654.61,0.00018998,2]
[378474708,1754879442814,-440.29,0.00018998,2]
[378474710,1754879442825,-411.61196973,0.00018998,2]
[378474712,1754879442835,-405.1640515,0.00018998,2]
[378474714,1754879442845,-527.78798233,0.00018998,2]
[378474716,1754879442855,-454.61,0.00018998,2]
[378474718,1754879442865,-2256.57,0.00018998,2]
[378474720,1754879442875,-400.0,0.00018998,2]
[378474722,1754879442887,-400.0,0.00018998,2]
[378474724,1754879442898,-1629.65,0.00018998,2]
[378474727,1754879442908,-400.0,0.00018998,2]
[378474729,1754879442922,-550.34,0.00018998,2]
[378474731,1754879442932,-400.0,0.00018998,2]
[378474733,1754879442943,-1335.73,0.00018998,2]
[378474735,1754879442954,-472.16,0.00018998,2]
[378474737,1754879442964,-400.0,0.00018998,2]
[378474739,1754879442974,-1604.52,0.00018998,2]
[378474741,1754879442984,-404.47950347,0.00018998,2]
[378474743,1754879442994,-400.0,0.00018998,2]
[378474745,1754879443006,-400.0,0.00018998,2]
[378474747,1754879443016,-400.0,0.00018998,2]
[378474749,1754879443028,-1167.72,0.00018998,2]
[378474751,1754879443038,-417.0,0.00018998,2]
[378474753,1754879443049,-503.81,0.00018998,2]
[378474756,1754879443060,-400.0,0.00018998,2]
[378474759,1754879443071,-1409.27,0.00018998,2]
[378474762,1754879443082,-454.51,0.00018998,2]
[378474765,1754879443093,-400.0,0.00018998,2]
[378474768,1754879443104,-1037.78,0.00018998,2]
[378474769,1754879443114,-400.0,0.00018998,2]
[378474772,1754879443125,-400.0,0.00018998,2]
[378474774,1754879443138,-3472.8,0.00018998,2]
[378474775,1754879443148,-772.75,0.00018998,2]
[378474777,1754879443158,-400.0,0.00018998,2]
[378474779,1754879443168,-1158.15,0.00018998,2]
[378474782,1754879443178,-400.0,0.00018998,2]
[378474784,1754879443188,-875.77,0.00018998,2]
[378474786,1754879443198,-410.08,0.00018998,2]
[378474788,1754879443208,-400.0,0.00018998,2]
[378474790,1754879443219,-400.0,0.00018998,2]
[378474792,1754879443229,-400.0,0.00018998,2]
[378474794,1754879443239,-400.0,0.00018998,2]
[378474796,1754879443249,-557.54,0.00018998,2]
[378474798,1754879443259,-400.0,0.00018998,2]
[378474800,1754879443269,-400.0,0.00018998,2]
[378474802,1754879443279,-400.0,0.00018998,2]
[378474804,1754879443288,-400.0,0.00018998,2]
[378474806,1754879443298,-731.68,0.00018998,2]
[378474809,1754879443308,-1677.24,0.00018998,2]
[378474811,1754879443318,-400.0,0.00018998,2]
[378474813,1754879443327,-400.0,0.00018998,2]
[378474815,1754879443337,-1519.15,0.00018998,2]
[378474817,1754879443347,-400.0,0.00018998,2]
[378474819,1754879443357,-400.0,0.00018998,2]
[378474821,1754879443366,-1000.0,0.00018999,2]
[378474823,1754879443376,-400.0,0.00018999,2]
[378474825,1754879443387,-400.0,0.00018999,2]
[378474827,1754879443397,-467.83,0.00018999,2]
[378474829,1754879443407,-150.0,0.00018999,2]
[378474831,1754879443417,-150.0,0.00018999,2]
[378474833,1754879443427,-400.0,0.00018999,2]
[378474835,1754879443436,-29996.76218419,0.00018999,2]
[378474837,1754879443446,-400.0,0.00018999,2]
[378474840,1754879443457,-429.39751632,0.00018999,2]
[378474842,1754879443468,-400.0,0.00018999,2]
[378474844,1754879443478,-116666.41710467,0.00018999,7]
[378474846,1754879443488,-400.0,0.00018999,2]
[378474848,1754879443499,-401.12041741,0.00018999,2]
[378474850,1754879443509,-400.0,0.00018999,2]
[378474852,1754879443522,-400.0,0.00018999,2]
[378474854,1754879443532,-400.0,0.00018999,2]
[378474856,1754879443542,-402.22084586,0.00018999,2]
[378474858,1754879443554,-400.0,0.00018999,2]
[378474860,1754879443565,-401.43413036,0.00018999,2]
[378474894,1754879443867,-400.0,0.00018999,2]
[378474896,1754879443877,-401.05725462,0.00018999,2]
[378474898,1754879443888,-645.45,0.00018999,2]
[378474901,1754879443899,-400.0,0.00018999,2]
[378474903,1754879443909,-402.97301398,0.00018999,2]
[378474905,1754879443920,-401.31846272,0.00018999,2]
[378474907,1754879443929,-400.0,0.00018999,2]
[378474908,1754879443938,-400.0,0.00018999,2]
[378474910,1754879443947,-401.33706087,0.00018999,2]
[378474912,1754879443957,-402.56175286,0.00018999,2]
[378474914,1754879443966,-401.8136605,0.00018999,2]
[378474916,1754879443975,-611.68140479,0.00018999,2]
[378474918,1754879443984,-400.0,0.00018999,2]
[378474920,1754879443993,-514.21,0.00018999,2]
[378474923,1754879444003,-400.0,0.00018999,2]
[378474925,1754879444013,-400.0,0.00018999,2]
[378474927,1754879444022,-400.0,0.00018999,2]
[378474928,1754879444031,-400.0,0.00018999,2]
[378474930,1754879444040,-400.0,0.00018999,2]
[378474932,1754879444050,-400.0,0.00018999,2]
[378474934,1754879444060,-400.0,0.00018999,2]
[378474937,1754879444069,-400.0,0.00018999,2]
[378474939,1754879444079,-687.05,0.00018999,2]
[378474941,1754879444088,-567.68,0.00018999,2]
[378474942,1754879444097,-400.0,0.00018999,2]
[378474945,1754879444107,-400.0,0.00018999,2]
[378474947,1754879444117,-431.0,0.00018999,2]
[378474949,1754879444126,-400.0,0.00018999,2]
[378474951,1754879444136,-400.0,0.00018999,2]
[378474953,1754879444145,-400.0,0.00018999,2]
[378474955,1754879444154,-505.71,0.00018999,2]
[378474957,1754879444164,-1000.0,0.00018999,2]
[378474959,1754879444173,-400.0,0.00018999,2]
[378474961,1754879444183,-400.0,0.00018999,2]
[378474963,1754879444193,-417.46278154,0.00018999,2]
[378474965,1754879444203,-407.67565685,0.00018999,2]
[378474967,1754879444212,-416.05802664,0.00018999,2]
[378474969,1754879444221,-400.0,0.00018999,2]
[378474971,1754879444231,-400.0,0.00018999,2]
[378474973,1754879444240,-400.0,0.00018999,2]
[378474975,1754879444249,-421.79284339,0.00018999,2]
[378474977,1754879444259,-400.0,0.00018999,2]
[378474979,1754879444267,-754.85,0.00018999,2]
[378474980,1754879444277,-400.0,0.00018999,2]
[378474982,1754879444286,-400.0,0.00018999,2]
[378474985,1754879444295,-551.06,0.00018999,2]